bitfinex/quotes_BTCUSD_20240918
["timestamp","ask_amount","ask_price","bid_price","bid_amount"]
[1726661503437,0.1754096,59896.0,59890.0,0.0039763]
[1726661503647,0.3423656,59896.0,59890.0,0.0039763]
[1726661503878,0.1784096,59896.0,59890.0,0.0039763]
[1726661504110,0.3453656,59896.0,59890.0,0.0039763]
[1726661504829,0.3423656,59896.0,59890.0,0.0039763]
[1726661505299,0.6762776,59896.0,59890.0,0.0039763]
[1726661505550,0.3423656,59896.0,59890.0,0.0039763]
[1726661506287,0.3513656,59896.0,59890.0,0.0039763]
[1726661506755,0.6762776,59896.0,59890.0,0.0039763]
[1726661507303,1.0101896,59896.0,59890.0,0.0039763]
[1726661507506,0.6762776,59896.0,59890.0,0.0039763]
[1726661507750,0.3423656,59896.0,59890.0,0.0039763]
[1726661507991,0.6762776,59896.0,59890.0,0.0039763]
[1726661508466,1.0101896,59896.0,59890.0,0.0039763]
[1726661512672,1.03638492,59896.0,59890.0,0.0039763]
[1726661512895,1.37029692,59896.0,59890.0,0.0039763]
[1726661513603,0.70247292,59896.0,59891.0,0.166969]
[1726661513846,0.70247292,59896.0,59890.0,0.1709463]
[1726661514425,0.36856092,59896.0,59891.0,0.333937]
[1726661514896,0.70247292,59896.0,59891.0,0.166969]
[1726661514914,0.70247292,59896.0,59890.0,0.0039763]
[1726661515073,1.03638492,59896.0,59890.0,0.0039763]
[1726661518698,1.37029692,59896.0,59890.0,0.0039763]
[1726661518934,1.46849692,59896.0,59890.0,0.0039763]
[1726661520410,1.90480892,59896.0,59890.0,0.0039763]
[1726661520650,1.8786136,59896.0,59890.0,0.0039763]
[1726661521222,1.8816136,59896.0,59890.0,0.0039763]
[1726661521371,1.93110158,59896.0,59890.0,0.0039763]
[1726661521608,1.8816136,59896.0,59890.0,0.0039763]
[1726661521840,1.93110158,59896.0,59890.0,0.0039763]
[1726661522074,1.93910158,59896.0,59890.0,0.0039763]
[1726661522319,1.97370791,59896.0,59890.0,0.0039763]
[1726661522559,1.98470791,59896.0,59890.0,0.0039763]
[1726661523545,1.98512719,59896.0,59890.0,0.0039763]
[1726661524276,2.01001094,59896.0,59890.0,0.0039763]
[1726661524301,1.91047593,59896.0,59890.0,0.0039763]
[1726661524520,2.0348947,59896.0,59890.0,0.0039763]
[1726661525493,2.0128947,59896.0,59890.0,0.0039763]
[1726661526088,2.0258947,59896.0,59890.0,0.0039763]
[1726661526460,1.90147593,59896.0,59890.0,0.0039763]
[1726661526935,1.92767389,59896.0,59890.0,0.0039763]
[1726661527165,1.90147593,59896.0,59890.0,0.0039763]
[1726661528043,1.4365016,59896.0,59890.0,0.0039763]
[1726661528313,1.0231896,59896.0,59890.0,0.0039763]
[1726661528415,1.0211896,59896.0,59890.0,0.0039763]
[1726661529130,0.6762776,59896.0,59890.0,0.1709463]
[1726661529375,1.0101896,59896.0,59890.0,0.0039763]
[1726661529605,1.3521016,59896.0,59890.0,0.0039763]
[1726661531314,1.37829747,59896.0,59890.0,0.0039763]
[1726661536369,1.42804995,59896.0,59890.0,0.0039763]
[1726661536595,1.37829747,59896.0,59890.0,0.0039763]
[1726661537317,1.40185408,59896.0,59890.0,0.0039763]
[1726661540581,1.42807706,59896.0,59890.0,0.0039763]
[1726661542509,1.42808105,59896.0,59890.0,0.0039763]
[1726661542922,0.834807,59894.0,59890.0,0.0039763]
[1726661543163,0.99786067,59894.0,59890.0,0.0039763]
[1726661543406,1.01014701,59894.0,59890.0,0.0039763]
[1726661543643,1.34407001,59894.0,59890.0,0.0039763]
[1726661545526,1.34907001,59894.0,59890.0,0.0039763]
[1726661553315,1.01514701,59894.0,59890.0,0.0039763]
[1726661555313,0.68122401,59894.0,59890.0,0.0039763]
[1726661555337,0.01728634,59894.0,59893.0,0.167785]
[1726661555470,0.01728634,59894.0,59893.0,0.000821]
[1726661555705,0.18424734,59894.0,59893.0,0.000821]
[1726661556373,1.01514701,59894.0,59893.0,0.000821]
[1726661556594,1.34907001,59894.0,59893.0,0.000821]
[1726661557050,1.01514701,59894.0,59893.0,0.000821]
[1726661557807,1.01514701,59894.0,59893.0,0.034821]
[1726661559244,1.34907001,59894.0,59893.0,0.034821]
[1726661559457,1.01514701,59894.0,59893.0,0.034821]
[1726661559703,1.34907001,59894.0,59893.0,0.034821]
[1726661560662,1.50352547,59894.0,59893.0,0.034821]
[1726661562309,1.52652547,59894.0,59893.0,0.034821]
[1726661562786,1.55272102,59894.0,59893.0,0.034821]
[1726661564125,1.65112102,59894.0,59893.0,0.034821]
[1726661564363,1.72581777,59894.0,59893.0,0.034821]
[1726661564611,1.72579547,59894.0,59893.0,0.034821]
[1726661564868,1.65112102,59894.0,59893.0,0.034821]
[1726661565514,1.98504402,59894.0,59893.0,0.034821]
[1726661565942,1.95884847,59894.0,59893.0,0.034821]
[1726661566434,1.62492547,59894.0,59893.0,0.034821]
[1726661567311,1.98384847,59894.0,59893.0,0.034821]
[1726661568176,1.99284847,59894.0,59893.0,0.034821]
[1726661568419,1.98384847,59894.0,59893.0,0.034821]
[1726661568858,1.99584847,59894.0,59893.0,0.034821]
[1726661569678,1.653625,59891.0,59890.0,0.0039763]
[1726661569900,1.94109853,59891.0,59890.0,0.0039763]
[1726661570034,2.2868332,59891.0,59890.0,0.0039763]
[1726661570242,2.16241364,59891.0,59890.0,0.0039763]
[1726661571129,2.17241364,59891.0,59890.0,0.0039763]
[1726661571361,2.16241364,59891.0,59890.0,0.0039763]
[1726661571840,1.79847464,59891.0,59890.0,0.0039763]
[1726661572381,1.92283851,59891.0,59890.0,0.0039763]
[1726661572569,1.93383851,59891.0,59890.0,0.0039763]
[1726661572977,2.29777751,59891.0,59890.0,0.0039763]
[1726661573467,2.39777751,59891.0,59890.0,0.0039763]
[1726661573922,2.40792049,59891.0,59890.0,0.0039763]
[1726661574175,2.42092049,59891.0,59890.0,0.0039763]
[1726661574645,2.39692049,59891.0,59890.0,0.0039763]
[1726661574886,2.41092049,59891.0,59890.0,0.0039763]
[1726661575580,2.4496422,59891.0,59890.0,0.0039763]
[1726661575775,2.4496422,59891.0,59882.0,0.004]
[1726661575776,1.77988346,59883.0,59882.0,0.004]
[1726661576199,1.169157,59872.0,59871.0,0.0039763]
[1726661576420,1.78925567,59872.0,59871.0,0.0039763]
[1726661576642,2.11617307,59872.0,59871.0,0.0039763]
[1726661576869,2.22474022,59872.0,59871.0,0.0039763]
[1726661577327,2.12538159,59872.0,59871.0,0.0039763]
[1726661577571,1.97092613,59872.0,59871.0,0.0039763]
[1726661577807,1.39352564,59872.0,59871.0,0.0039763]
[1726661578035,1.34388113,59872.0,59871.0,0.0039763]
[1726661578563,0.01167046,59872.0,59871.0,0.0039763]
[1726661578836,0.01167046,59872.0,59871.0,0.1710013]
[1726661579072,0.07446508,59885.0,59871.0,0.0039763]
[1726661579280,0.12419829,59889.0,59871.0,0.0039763]
[1726661579281,0.014,59872.0,59871.0,0.0039763]
[1726661579743,0.014,59872.0,59871.0,0.0828763]
[1726661580044,0.1834826,59872.0,59871.0,0.0828763]
[1726661580514,0.5175276,59872.0,59871.0,0.0828763]
[1726661580752,0.1694826,59872.0,59871.0,0.0828763]
[1726661581447,0.0024606,59872.0,59871.0,0.0828763]
[1726661581667,0.1694826,59872.0,59871.0,0.0828763]
[1726661581899,0.1704826,59872.0,59871.0,0.0828763]
[1726661582368,0.0034606,59872.0,59871.0,0.0828763]
[1726661582831,0.1704826,59872.0,59871.0,0.0828763]
[1726661583293,0.0034606,59872.0,59871.0,0.0828763]
[1726661584963,0.0034606,59872.0,59871.0,0.9180033]
[1726661585189,0.001,59872.0,59871.0,0.9200033]
[1726661585430,0.001,59872.0,59871.0,1.2540543]
[1726661585660,0.001,59872.0,59871.0,1.58610976]
[1726661587802,0.333965,59887.0,59882.0,0.166994]
[1726661588046,0.333979,59884.0,59882.0,0.0789]
[1726661588297,0.166989,59884.0,59882.0,0.0789]
[1726661588745,0.00894176,59883.0,59882.0,0.0789]
[1726661588984,0.00252364,59883.0,59882.0,0.245895]
[1726661589209,0.00252364,59883.0,59882.0,0.0789]
[1726661589442,0.166988,59885.0,59882.0,0.0791309]
[1726661589663,0.00905961,59883.0,59882.0,0.5099209]
[1726661589901,0.00252364,59886.0,59885.0,0.166986]
[1726661590123,0.00252364,59886.0,59885.0,0.0789]
[1726661590369,0.00252364,59886.0,59885.0,0.2461169]
[1726661590630,0.00252364,59886.0,59885.0,0.5800899]
[1726661590855,0.00252364,59886.0,59885.0,0.4817319]
[1726661591992,0.00252364,59886.0,59885.0,0.4847319]
[1726661592224,0.01153933,59886.0,59885.0,0.4847319]
[1726661592466,0.00252364,59886.0,59885.0,1.1526779]
[1726661592719,0.01154494,59886.0,59885.0,1.1887979]
[1726661592949,0.01154494,59886.0,59885.0,1.1877979]
[1726661592950,0.00252364,59886.0,59885.0,1.1877979]
[1726661594131,0.00252364,59886.0,59885.0,1.2642979]
[1726661594618,0.00252364,59886.0,59885.0,1.7917709]
[1726661594890,0.00252364,59886.0,59885.0,1.98482457]
[1726661595123,0.001642,59895.0,59885.0,1.98482457]
[1726661595124,0.001642,59895.0,59894.0,0.65733946]
[1726661595384,0.001642,59895.0,59894.0,1.12111336]
[1726661595609,0.001642,59895.0,59894.0,1.45503636]
[1726661596321,0.001642,59895.0,59894.0,1.45303636]
[1726661596560,0.001642,59895.0,59894.0,1.2985809]
[1726661597840,0.001642,59895.0,59894.0,1.3005809]
[1726661598058,0.002642,59895.0,59894.0,1.3055809]
[1726661600408,0.002642,59895.0,59894.0,1.3075809]
[1726661601016,0.002642,59895.0,59894.0,0.9716579]
[1726661605840,1.00048767,59895.0,59894.0,0.0433509]
[1726661606075,1.33440467,59895.0,59894.0,0.0433509]
[1726661606307,1.87635787,59895.0,59894.0,0.0433509]
[1726661606491,1.87635787,59895.0,59894.0,0.0072309]
[1726661606987,1.54244087,59895.0,59894.0,0.0072309]
[1726661607438,1.54144087,59895.0,59894.0,0.0002309]
[1726661608591,1.51844087,59895.0,59894.0,0.0002309]
[1726661609778,1.51844087,59895.0,59894.0,0.0012309]
[1726661609779,1.52744087,59895.0,59894.0,0.0012309]
[1726661610629,1.55363769,59895.0,59894.0,0.0012309]
[1726661620463,1.47123769,59895.0,59894.0,0.0012309]
[1726661620662,1.35404087,59895.0,59894.0,0.0012309]
[1726661625028,1.02012387,59895.0,59894.0,0.0012309]
[1726661625482,0.1892362,59895.0,59894.0,0.0012309]
[1726661626194,0.1892362,59895.0,59894.0,0.0373509]
[1726661627339,0.8570702,59895.0,59894.0,0.0373509]
[1726661627568,0.5141532,59895.0,59894.0,0.0363509]
[1726661628475,0.5191532,59895.0,59894.0,0.0363509]
[1726661628900,0.1852362,59895.0,59894.0,0.0363509]
[1726661629129,0.5191532,59895.0,59894.0,0.0363509]
[1726661629788,0.21143182,59895.0,59894.0,0.0363509]
[1726661630006,0.20643182,59895.0,59894.0,0.0363509]
[1726661630225,0.20643182,59895.0,59894.0,0.0393509]
[1726661636247,0.54034882,59895.0,59894.0,0.0393509]
[1726661636689,0.87426582,59895.0,59894.0,0.0393509]
[1726661636913,0.54034882,59895.0,59894.0,0.0393509]
[1726661637627,0.87426582,59895.0,59894.0,0.0393509]
[1726661639343,0.70340249,59895.0,59894.0,0.0393509]
[1726661639798,1.03731949,59895.0,59894.0,0.0393509]
[1726661641761,1.01112387,59895.0,59894.0,0.0393509]
[1726661641982,0.67720687,59895.0,59894.0,0.0393509]
[1726661642200,1.01112387,59895.0,59894.0,0.0032309]
[1726661644433,1.34504087,59895.0,59894.0,0.0032309]
[1726661644641,1.01112387,59895.0,59894.0,0.0032309]
[1726661644848,1.34504087,59895.0,59894.0,0.0002309]
[1726661645075,1.34504087,59895.0,59894.0,0.0012309]
[1726661645297,1.34504087,59895.0,59894.0,0.0373509]
[1726661645503,1.01112387,59895.0,59894.0,0.0373509]
[1726661648073,1.34504087,59895.0,59894.0,0.0373509]
[1726661648756,1.01112387,59895.0,59894.0,0.0373509]
[1726661650857,1.34504087,59895.0,59894.0,0.0373509]
[1726661652354,1.34504087,59895.0,59894.0,0.0012309]
[1726661652599,1.37123602,59895.0,59894.0,0.0012309]
[1726661653076,1.37123602,59895.0,59894.0,0.0002309]
[1726661653289,1.37223602,59895.0,59894.0,0.0002309]
[1726661660849,1.47073602,59895.0,59894.0,0.0002309]
[1726661661102,1.82765302,59895.0,59894.0,0.0002309]
[1726661661352,1.90805302,59895.0,59894.0,0.0002309]
[1726661661861,2.00628976,59895.0,59894.0,0.0002309]
[1726661662095,2.03528976,59895.0,59894.0,0.0002309]
[1726661662357,1.91085787,59895.0,59894.0,0.0002309]
[1726661662611,1.92085787,59895.0,59894.0,0.0012309]
[1726661662845,2.25477487,59895.0,59894.0,0.0012309]
[1726661663884,2.24477487,59895.0,59894.0,0.0002309]
[1726661664381,2.25477487,59895.0,59894.0,0.0012309]
[1726661664836,1.89085787,59895.0,59894.0,0.0012309]
[1726661665080,1.99221778,59895.0,59894.0,0.0012309]
[1726661665274,2.01841639,59895.0,59894.0,0.0012309]
[1726661665840,2.32155091,59887.0,59886.0,0.000821]
[1726661666039,2.16209423,59887.0,59886.0,0.000821]
[1726661666790,2.49605623,59887.0,59886.0,0.000821]
[1726661666970,1.94773432,59887.0,59886.0,0.000821]
[1726661667181,1.51377232,59887.0,59886.0,0.000821]
[1726661667625,1.44907232,59887.0,59886.0,0.000821]
[1726661667875,1.43507232,59887.0,59886.0,0.000821]
[1726661668343,1.47207232,59887.0,59886.0,0.000821]
[1726661668555,1.43507232,59887.0,59886.0,0.000821]
[1726661669009,1.44507232,59887.0,59886.0,0.000821]
[1726661669236,1.43507232,59887.0,59886.0,0.000821]
[1726661669447,1.46127327,59887.0,59886.0,0.000821]
[1726661669849,1.43507232,59887.0,59886.0,0.000821]
[1726661670821,1.76903432,59887.0,59886.0,0.000821]
[1726661671040,1.43507232,59887.0,59886.0,0.000821]
[1726661671256,1.80103432,59887.0,59886.0,0.000821]
[1726661671756,1.79203432,59887.0,59886.0,0.000821]
[1726661671964,1.80203432,59887.0,59886.0,0.000821]
[1726661672460,1.97171402,59887.0,59886.0,0.000821]
[1726661672711,2.13838816,59887.0,59886.0,0.000821]
[1726661672985,2.34689632,59887.0,59886.0,0.000821]
[1726661673191,2.47109557,59887.0,59886.0,0.000821]
[1726661673584,2.4709132,59887.0,59886.0,0.000821]
[1726661673810,2.48108333,59887.0,59886.0,0.000821]
[1726661674025,2.34506645,59887.0,59886.0,0.000821]
[1726661674468,2.35806645,59887.0,59886.0,0.000821]
[1726661674771,2.45725115,59887.0,59886.0,0.000821]
[1726661674964,2.45725115,59887.0,59875.0,0.003127]
[1726661674965,0.03,59877.0,59875.0,0.003127]
[1726661675178,1.96785232,59876.0,59875.0,0.003127]
[1726661675396,2.44390994,59876.0,59875.0,0.003127]
[1726661675630,2.39432081,59876.0,59875.0,0.003127]
[1726661675916,2.49432081,59876.0,59875.0,0.003127]
[1726661676292,2.52052859,59876.0,59875.0,0.003127]
[1726661676516,2.49432081,59876.0,59875.0,0.003127]
[1726661677632,1.95280216,59876.0,59875.0,0.003127]
[1726661677852,1.96580216,59876.0,59875.0,0.003127]
[1726661678518,1.35647916,59876.0,59875.0,0.003127]
[1726661678791,1.00945616,59876.0,59875.0,0.003127]
[1726661679007,1.02245616,59876.0,59875.0,0.003127]
[1726661679239,1.04866116,59876.0,59875.0,0.003127]
[1726661679842,1.02245616,59876.0,59875.0,0.003127]
[1726661679952,1.00945616,59876.0,59875.0,0.003127]
[1726661680582,1.34347916,59876.0,59875.0,0.003127]
[1726661680801,1.00945616,59876.0,59875.0,0.003127]
[1726661681018,1.34347916,59876.0,59875.0,0.003127]
[1726661681469,1.34347916,59876.0,59869.0,0.000821]
[1726661681470,1.34669465,59870.0,59869.0,0.000821]
[1726661681685,1.33225267,59870.0,59869.0,0.000821]
[1726661681899,1.34352555,59870.0,59869.0,0.000821]
[1726661683000,1.35452555,59870.0,59869.0,0.000821]
[1726661683246,1.34352555,59870.0,59869.0,0.000821]
[1726661684840,1.34952555,59870.0,59869.0,0.000821]
[1726661685108,1.34352555,59870.0,59869.0,0.000821]
[1726661685590,1.35052555,59870.0,59869.0,0.000821]
[1726661685819,1.34352555,59870.0,59869.0,0.000821]
[1726661686072,1.4980212,59870.0,59869.0,0.000821]
[1726661686305,1.5270212,59870.0,59869.0,0.000821]
[1726661687137,1.8610782,59870.0,59869.0,0.000821]
[1726661687249,1.5270212,59870.0,59869.0,0.000821]
[1726661688034,1.5210212,59870.0,59869.0,0.000821]
[1726661688293,1.54722931,59870.0,59869.0,0.000821]
[1726661688542,1.55422931,59870.0,59869.0,0.000821]
[1726661688790,1.5280212,59870.0,59869.0,0.000821]
[1726661689088,1.5210212,59870.0,59869.0,0.000821]
[1726661689259,1.5226632,59870.0,59869.0,0.000821]
[1726661689803,1.36816755,59870.0,59869.0,0.000821]
[1726661690369,1.34516755,59870.0,59869.0,0.000821]
[1726661690553,1.35516755,59870.0,59869.0,0.000821]
[1726661691729,1.34516755,59870.0,59869.0,0.000821]
[1726661691998,1.35316755,59870.0,59869.0,0.000821]
[1726661692268,1.01911055,59870.0,59869.0,0.000821]
[1726661693961,1.04531701,59870.0,59869.0,0.000821]
[1726661694255,1.01911055,59870.0,59869.0,0.000821]
[1726661696313,1.35293882,59870.0,59869.0,0.000821]
[1726661697207,1.37914594,59870.0,59869.0,0.000821]
[1726661697466,1.35293882,59870.0,59869.0,0.000821]
[1726661698705,1.37593882,59870.0,59869.0,0.000821]
[1726661698918,1.70999582,59870.0,59869.0,0.000821]
[1726661699371,1.37593882,59870.0,59869.0,0.000821]
[1726661700603,1.35293882,59870.0,59869.0,0.000821]
[1726661701648,1.3791467,59870.0,59869.0,0.000821]
[1726661702098,1.8346037,59870.0,59869.0,0.000821]
[1726661703475,1.5005467,59870.0,59869.0,0.000821]
[1726661703944,1.8346037,59870.0,59869.0,0.000821]
[1726661704201,1.5005467,59870.0,59869.0,0.000821]
[1726661705552,1.8346037,59870.0,59869.0,0.000821]
[1726661705761,1.5005467,59870.0,59869.0,0.000821]
[1726661706254,1.8346037,59870.0,59869.0,0.000821]
[1726661706455,1.5005467,59870.0,59869.0,0.000821]
[1726661706913,1.8346037,59870.0,59869.0,0.000821]
[1726661707665,1.4021467,59870.0,59869.0,0.000821]
[1726661707927,1.3791467,59870.0,59869.0,0.000821]
[1726661708237,1.35293882,59870.0,59869.0,0.000821]
[1726661708747,0.02091488,59870.0,59869.0,0.000821]
[1726661708989,0.02091488,59870.0,59869.0,0.098121]
[1726661709239,0.02091488,59870.0,59869.0,0.933276]
[1726661709689,0.02091488,59870.0,59869.0,1.49651167]
[1726661709919,0.009642,59870.0,59869.0,1.49651167]
[1726661710076,0.001642,59870.0,59869.0,1.49851167]
[1726661710227,0.166982,59887.0,59882.0,0.166994]
[1726661710495,0.333952,59889.0,59885.0,0.166985]
[1726661710496,0.166976,59889.0,59885.0,0.166985]
[1726661710755,0.166976,59889.0,59882.0,0.58788265]
[1726661710756,0.01123232,59886.0,59884.0,0.166988]
[1726661711008,0.33003267,59888.0,59882.0,0.433387]
[1726661711009,0.33003267,59888.0,59883.0,0.500973]
[1726661711296,0.01123232,59885.0,59883.0,0.16699]
[1726661711550,0.166987,59885.0,59882.0,0.0994]
[1726661711797,0.01123232,59884.0,59876.0,0.09]
[1726661712047,0.333996,59881.0,59872.0,0.1]
[1726661712295,0.334022,59877.0,59871.0,0.0808]
[1726661712531,0.009557,59880.0,59872.0,0.03666]
[1726661712776,0.167009,59877.0,59873.0,0.167018]
[1726661713085,0.167009,59877.0,59873.0,0.203678]
[1726661713569,0.00191944,59876.0,59873.0,0.203678]
[1726661713806,0.00191944,59876.0,59874.0,0.167016]
[1726661714047,0.00191944,59876.0,59874.0,0.203676]
[1726661714331,0.501013,59879.0,59874.0,0.203676]
[1726661714599,0.00191944,59875.0,59874.0,0.203676]
[1726661714847,0.167006,59878.0,59874.0,0.203676]
[1726661715114,0.00192504,59875.0,59874.0,0.203676]
[1726661715376,0.167006,59878.0,59874.0,0.203676]
[1726661715574,0.00191944,59877.0,59874.0,0.203676]
[1726661715793,0.167005,59879.0,59874.0,0.203676]
[1726661716010,0.00191944,59876.0,59874.0,0.203676]
[1726661716359,0.001,59876.0,59874.0,0.203676]
[1726661716522,0.00191944,59875.0,59874.0,0.203676]
[1726661716722,0.50296244,59875.0,59874.0,0.03666]
[1726661716981,0.00191944,59875.0,59874.0,0.03866]
[1726661717187,0.16893344,59875.0,59874.0,0.03666]
[1726661717644,0.16893344,59875.0,59874.0,0.03866]
[1726661717851,0.00191944,59875.0,59874.0,0.03666]
[1726661718296,0.167011,59877.0,59874.0,0.03666]
[1726661718509,0.167013,59876.0,59874.0,0.03666]
[1726661718720,0.167013,59876.0,59874.0,0.03866]
[1726661718721,0.001,59875.0,59874.0,0.03866]
[1726661718937,0.168014,59875.0,59874.0,0.03866]
[1726661719675,0.16993904,59875.0,59874.0,0.03866]
[1726661719698,0.00292504,59875.0,59874.0,0.03866]
[1726661720152,0.50396804,59875.0,59874.0,0.03866]
[1726661720301,0.50296804,59875.0,59874.0,0.03666]
[1726661720514,0.00192504,59875.0,59874.0,0.205677]
[1726661720738,0.50296804,59875.0,59874.0,0.03866]
[1726661720973,0.16893904,59875.0,59874.0,0.03666]
[1726661721185,0.16893904,59875.0,59874.0,0.03866]
[1726661721406,0.83699704,59875.0,59874.0,0.03866]
[1726661721627,0.83699704,59875.0,59874.0,0.03666]
[1726661721834,0.83799704,59875.0,59874.0,0.03866]
[1726661723208,0.50396804,59875.0,59874.0,0.03866]
[1726661723424,0.50296804,59875.0,59874.0,0.03666]
[1726661724306,0.50296804,59875.0,59874.0,0.03866]
[1726661726097,0.50461004,59875.0,59874.0,0.03866]
[1726661726319,0.00356704,59875.0,59874.0,0.03866]
[1726661726753,0.00356704,59875.0,59874.0,0.205677]
[1726661727203,0.00356704,59875.0,59874.0,0.03866]
[1726661727469,0.18009285,59875.0,59874.0,0.03866]
[1726661727685,0.17058104,59875.0,59874.0,0.03866]
[1726661727898,0.18010406,59875.0,59874.0,0.03866]
[1726661728109,0.01309006,59875.0,59874.0,0.03866]
[1726661728582,1.18219106,59875.0,59874.0,0.03866]
[1726661728819,1.34524473,59875.0,59874.0,0.03866]
[1726661729017,1.34524473,59875.0,59874.0,0.002]
[1726661729329,1.67927373,59875.0,59874.0,0.002]
[1726661730189,1.169178,59871.0,59870.0,0.000821]
[1726661730434,1.33223167,59871.0,59870.0,0.000821]
[1726661730655,1.33223167,59871.0,59870.0,0.037001]
[1726661730656,1.34360127,59871.0,59870.0,0.037001]
[1726661731319,1.36980686,59871.0,59870.0,0.037001]
[1726661731563,1.36980686,59871.0,59870.0,0.039001]
[1726661732925,1.34360127,59871.0,59870.0,0.039001]
[1726661734711,1.77315227,59871.0,59870.0,0.039001]
[1726661734928,1.77315227,59871.0,59870.0,0.002821]
[1726661734929,2.02764792,59871.0,59870.0,0.002821]
[1726661737231,2.02764792,59871.0,59870.0,0.000821]
[1726661737728,2.03764792,59871.0,59870.0,0.000821]
[1726661738454,2.06385687,59871.0,59870.0,0.000821]
[1726661739598,2.06291125,59871.0,59870.0,0.000821]
[1726661741071,2.0367023,59871.0,59870.0,0.000821]
[1726661744838,2.0597023,59871.0,59870.0,0.000821]
[1726661747124,2.3937533,59871.0,59870.0,0.000821]
[1726661750042,2.0597023,59871.0,59870.0,0.000821]
[1726661752078,2.0613443,59871.0,59870.0,0.000821]
[1726661756025,1.45429765,59871.0,59870.0,0.000821]
[1726661757136,1.78834865,59871.0,59870.0,0.000821]
[1726661761077,1.8145575,59871.0,59870.0,0.000821]
[1726661762417,1.8375575,59871.0,59870.0,0.000821]
[1726661762639,1.8145575,59871.0,59870.0,0.000821]
[1726661762882,1.68834865,59871.0,59870.0,0.000821]
[1726661764285,1.02024665,59871.0,59870.0,0.000821]
[1726661764312,0.85719298,59871.0,59870.0,0.000821]
[1726661765796,0.84719298,59871.0,59870.0,0.000821]
[1726661766219,0.85319298,59871.0,59870.0,0.000821]
[1726661767180,0.8734007,59871.0,59870.0,0.000821]
[1726661767408,0.8754007,59871.0,59870.0,0.000821]
[1726661767621,0.5413497,59871.0,59870.0,0.000821]
[1726661767833,0.04121932,59871.0,59870.0,0.167849]
[1726661768042,0.04121932,59871.0,59870.0,0.267649]
[1726661768280,1.03939999,59871.0,59870.0,0.000821]
[1726661768490,1.01319227,59871.0,59870.0,0.000821]
[1726661768695,1.34724327,59871.0,59870.0,0.000821]
[1726661772798,1.37344914,59871.0,59870.0,0.000821]
[1726661773692,1.52794479,59871.0,59870.0,0.000821]
[1726661778941,1.88499579,59871.0,59870.0,0.000821]
[1726661779412,1.73050014,59871.0,59870.0,0.000821]
[1726661779654,2.62710214,59871.0,59870.0,0.000821]
[1726661779880,2.23684527,59871.0,59870.0,0.000821]
[1726661780099,2.51561879,59871.0,59870.0,0.000821]
[1726661780323,2.39134092,59871.0,59870.0,0.000821]
[1726661780536,2.40113914,59871.0,59870.0,0.000821]
[1726661781221,2.42913914,59871.0,59870.0,0.000821]
[1726661781683,2.44213914,59871.0,59870.0,0.000821]
[1726661781898,2.44413914,59871.0,59870.0,0.000821]
[1726661782608,2.50213914,59871.0,59870.0,0.000821]
[1726661782818,2.52834968,59871.0,59870.0,0.000821]
[1726661783030,2.51534968,59871.0,59870.0,0.000821]
[1726661783469,2.52934968,59871.0,59870.0,0.000821]
[1726661783896,2.51534968,59871.0,59870.0,0.000821]
[1726661784121,2.50313914,59871.0,59870.0,0.000821]
[1726661786425,2.91229014,59871.0,59870.0,0.000821]
[1726661786721,2.91229014,59871.0,59862.0,0.004821]
[1726661786722,0.631144,59863.0,59862.0,0.004821]
[1726661786929,1.83177903,59863.0,59862.0,0.004821]
[1726661787103,2.17706351,59863.0,59862.0,0.004821]
[1726661787343,2.17706351,59863.0,59835.0,0.000821]
[1726661787344,1.292707,59844.0,59835.0,0.000821]
[1726661787578,0.99855867,59844.0,59843.0,0.04018]
[1726661787812,0.2787089,59849.0,59843.0,0.04018]
[1726661787813,0.0496853,59850.0,59843.0,0.004]
[1726661788039,0.16305367,59849.0,59843.0,0.004]
[1726661788505,0.501303,59844.0,59843.0,0.004]
[1726661788717,0.167101,59844.0,59843.0,0.004]
[1726661789399,0.167099,59845.0,59843.0,0.004]
[1726661790008,0.167099,59845.0,59843.0,0.04018]
[1726661790178,0.167101,59844.0,59843.0,0.04018]
[1726661790307,0.509303,59844.0,59843.0,0.04018]
[1726661790547,0.51096014,59844.0,59843.0,0.04118]
[1726661790998,0.50296014,59844.0,59843.0,0.041001]
[1726661791289,0.50296014,59844.0,59843.0,0.005821]
[1726661791545,0.66601381,59844.0,59843.0,0.005821]
[1726661791766,1.33441781,59844.0,59843.0,0.005821]
[1726661792230,1.69161981,59844.0,59843.0,0.005821]
[1726661792484,1.79161981,59844.0,59843.0,0.005821]
[1726661792722,1.79161981,59844.0,59843.0,0.004821]
[1726661793158,1.79161981,59844.0,59843.0,0.005821]
[1726661793587,1.79161981,59844.0,59843.0,0.004821]
[1726661793811,1.80561981,59844.0,59843.0,0.004821]
[1726661794079,1.79161981,59844.0,59843.0,0.004821]
[1726661794522,1.80561981,59844.0,59843.0,0.004821]
[1726661794762,1.81546648,59844.0,59843.0,0.004821]
[1726661795493,1.90686648,59844.0,59843.0,0.004821]
[1726661797790,1.687187,59840.0,59839.0,0.0039705]
[1726661798016,2.00473632,59840.0,59839.0,0.0039705]
[1726661798242,2.00632281,59840.0,59839.0,0.0039705]
[1726661798674,1.85182716,59840.0,59839.0,0.0039705]
[1726661798907,2.00632281,59840.0,59839.0,0.0039705]
[1726661800455,2.01932281,59840.0,59839.0,0.0039705]
[1726661800895,1.50760316,59840.0,59839.0,0.0039705]
[1726661801369,1.66209881,59840.0,59839.0,0.0039705]
[1726661801851,1.6716646,59840.0,59839.0,0.0039705]
[1726661811268,2.5422126,59840.0,59839.0,0.0039705]
[1726661811538,2.79457515,59840.0,59839.0,0.0039705]
[1726661811775,2.60594108,59840.0,59839.0,0.0039705]
[1726661812021,2.7703608,59840.0,59839.0,0.0039705]
[1726661812524,2.7703608,59840.0,59835.0,0.000821]
[1726661812525,0.03,59836.0,59835.0,0.000821]
[1726661812966,0.03,59836.0,59830.0,0.000821]
[1726661812967,2.28730265,59831.0,59830.0,0.000821]
[1726661813115,2.28730265,59831.0,59828.0,0.00011]
[1726661813116,1.717287,59829.0,59828.0,0.00011]
[1726661813237,1.85034067,59829.0,59828.0,0.00011]
[1726661813456,1.82180308,59829.0,59828.0,0.00011]
[1726661813912,1.79180308,59829.0,59828.0,0.00011]
[1726661816119,1.79180308,59829.0,59821.0,0.0071034]
[1726661816120,0.835812,59822.0,59821.0,0.0071034]
[1726661816354,1.00026952,59822.0,59821.0,0.0071034]
[1726661816594,1.33459452,59822.0,59821.0,0.0071034]
[1726661816875,1.0097749,59822.0,59821.0,0.0071034]
[1726661817137,1.3440999,59822.0,59821.0,0.0071034]
[1726661817400,1.0097749,59822.0,59821.0,0.0071034]